bitfinex-derivatives/quotes_BTCF0:USTF0_20241203
["timestamp","ask_amount","ask_price","bid_price","bid_amount"]
[1733210527450,0.3608,95560.0,95552.0,0.0026]
[1733210527643,0.3608,95554.0,95548.0,0.0026]
[1733210527845,0.3608,95554.0,95542.0,0.0026]
[1733210527846,0.052321,95549.0,95542.0,0.0026]
[1733210528048,0.3608,95546.0,95540.0,0.0026]
[1733210528350,0.3608,95546.0,95539.0,0.0026]
[1733210528650,0.00270936,95545.0,95535.0,0.14536]
[1733210529350,0.00837,95544.0,95533.0,0.0026]
[1733210529650,0.00837,95544.0,95536.0,0.14536]
[1733210530655,0.00837,95544.0,95535.0,0.003]
[1733210530656,0.00837,95544.0,95535.0,0.008]
[1733210530852,0.413127,95538.0,95535.0,0.008]
[1733210531153,0.3608,95538.0,95536.0,0.005]
[1733210531342,0.3608,95538.0,95536.0,0.007]
[1733210531950,0.3608,95538.0,95536.0,0.059328]
[1733210532152,0.3608,95538.0,95536.0,0.007]
[1733210532739,0.3608,95538.0,95535.0,0.02594886]
[1733210532948,0.3608,95538.0,95536.0,0.052328]
[1733210533448,0.3608,95538.0,95536.0,0.057328]
[1733210533636,0.00837,95544.0,95542.0,0.052324]
[1733210534055,0.00837,95544.0,95543.0,0.0343]
[1733210534350,0.00270936,95545.0,95544.0,0.052324]
[1733210534552,0.36917,95567.0,95544.0,0.0342]
[1733210534745,0.36917,95567.0,95554.0,0.052318]
[1733210534943,0.36917,95567.0,95555.0,0.14536]
[1733210535144,0.36917,95567.0,95557.0,0.052316]
[1733210535751,0.36917,95567.0,95555.0,0.14536]
[1733210535752,0.36917,95567.0,95558.0,0.052316]
[1733210536152,0.00837,95566.0,95558.0,0.052316]
[1733210536346,0.00837,95566.0,95555.0,0.14536]
[1733210536648,0.00837,95566.0,95562.0,0.052313]
[1733210537856,0.00837,95566.0,95555.0,0.14836]
[1733210538047,0.00837,95566.0,95559.0,0.052315]
[1733210538244,0.00937,95566.0,95555.0,0.14636]
[1733210538653,0.00937,95566.0,95565.0,0.052312]
[1733210538855,0.00937,95566.0,95565.0,0.197672]
[1733210539655,0.01037,95566.0,95565.0,0.14536]
[1733210540259,0.00937,95566.0,95565.0,0.14536]
[1733210540948,0.01237,95566.0,95565.0,0.14536]
[1733210542661,0.01237,95566.0,95565.0,0.21376]
[1733210542851,0.02074,95566.0,95565.0,0.21376]
[1733210543851,0.02074,95566.0,95565.0,0.18106]
[1733210544052,0.02074,95566.0,95565.0,0.0357]
[1733210544253,0.02074,95566.0,95565.0,0.18066]
[1733210544952,0.02074,95566.0,95565.0,0.14496]
[1733210545253,0.02074,95566.0,95565.0,0.21821304]
[1733210548255,0.02074,95566.0,95565.0,0.16590104]
[1733210549151,0.02074,95566.0,95565.0,0.14496]
[1733210549152,0.05344,95566.0,95565.0,0.14496]
[1733210549351,0.02074,95566.0,95564.0,0.14496]
[1733210549655,0.02074,95566.0,95564.0,0.16590104]
[1733210549957,0.02074,95566.0,95565.0,0.3608]
[1733210550470,0.01974,95566.0,95565.0,0.3608]
[1733210551156,0.01874,95566.0,95565.0,0.3608]
[1733210552249,0.01774,95566.0,95565.0,0.3608]
[1733210553760,0.01774,95566.0,95565.0,0.50572]
[1733210554965,0.0026,95588.0,95584.0,0.052301]
[1733210555262,0.0026,95588.0,95565.0,0.50572]
[1733210555263,0.3608,95593.0,95586.0,0.0523]
[1733210555462,0.3608,95593.0,95587.0,0.14492]
[1733210556058,0.052297,95592.0,95587.0,0.14492]
[1733210556259,0.3608,95593.0,95587.0,0.14492]
[1733210556769,0.005,95588.0,95587.0,0.14492]
[1733210557266,0.060658,95592.0,95587.0,0.14492]
[1733210557462,0.00836,95592.0,95589.0,0.052299]
[1733210557659,0.00836,95592.0,95590.0,0.052298]
[1733210558254,0.00936,95592.0,95590.0,0.052298]
[1733210558457,0.01772,95592.0,95590.0,0.052298]
[1733210558664,0.01772,95592.0,95587.0,0.14492]
[1733210559167,0.052299,95589.0,95587.0,0.14492]
[1733210559469,0.01872,95592.0,95590.0,0.052298]
[1733210559653,0.02072,95592.0,95590.0,0.052298]
[1733210559854,0.01872,95592.0,95590.0,0.052298]
[1733210560360,0.01672,95592.0,95590.0,0.052298]
[1733210561063,0.01772,95592.0,95590.0,0.052298]
[1733210562066,0.01872,95592.0,95590.0,0.052298]
[1733210562564,0.01872,95592.0,95591.0,0.0695]
[1733210563463,0.01772,95592.0,95591.0,0.0695]
[1733210564255,0.01872,95592.0,95591.0,0.0755]
[1733210564457,0.01772,95592.0,95591.0,0.0755]
[1733210564667,0.01772,95592.0,95591.0,0.0785]
[1733210566166,0.01772,95592.0,95591.0,0.15392]
[1733210566664,0.1,95600.0,95591.0,0.15392]
[1733210566867,0.1,95600.0,95599.0,0.413093]
[1733210567464,0.1,95600.0,95599.0,0.558013]
[1733210567764,0.0026,95619.0,95599.0,0.50572]
[1733210567965,0.0359,95621.0,95606.0,0.05229]
[1733210568178,0.11502135,95620.0,95606.0,0.05229]
[1733210568358,0.052286,95612.0,95606.0,0.05229]
[1733210568558,0.3608,95614.0,95603.0,0.0026]
[1733210568865,0.11502135,95613.0,95603.0,0.0026]
[1733210569061,0.052289,95607.0,95603.0,0.0026]
[1733210569266,0.05229,95606.0,95603.0,0.0026]
[1733210569570,0.05229,95605.0,95603.0,0.0026]
[1733210569769,0.11502135,95613.0,95599.0,0.561573]
[1733210569770,0.052291,95604.0,95599.0,0.561573]
[1733210569966,0.052291,95604.0,95599.0,0.416093]
[1733210570172,0.052292,95602.0,95600.0,0.14492]
[1733210570370,0.052292,95601.0,95599.0,0.415093]
[1733210570664,0.0357,95600.0,95599.0,0.413093]
[1733210570872,0.0357,95600.0,95599.0,0.558013]
[1733210571667,0.0357,95600.0,95599.0,0.50572]
[1733210572070,0.0357,95600.0,95599.0,0.50672]
[1733210572373,0.0357,95600.0,95599.0,0.14308]
[1733210572573,0.0715,95600.0,95599.0,0.14308]
[1733210573072,0.0715,95600.0,95599.0,0.003]
[1733210573367,0.0715,95600.0,95599.0,0.14508]
[1733210574069,0.0715,95600.0,95599.0,0.003]
[1733210574269,0.0715,95600.0,95599.0,0.14508]
[1733210574867,0.00836,95603.0,95602.0,0.052292]
[1733210576076,0.00836,95603.0,95602.0,0.053292]
[1733210577277,0.00836,95603.0,95602.0,0.001]
[1733210577873,0.00836,95603.0,95602.0,0.14308]
[1733210578071,0.00836,95603.0,95602.0,0.001]
[1733210580668,0.052292,95602.0,95601.0,0.14208]
[1733210581677,0.01336,95603.0,95598.0,0.0026]
[1733210581871,0.052293,95600.0,95599.0,0.14208]
[1733210582871,0.052293,95600.0,95598.0,0.0026]
[1733210583078,0.052293,95600.0,95593.0,0.14208]
[1733210583079,0.052296,95594.0,95593.0,0.0026]
[1733210583276,0.052299,95589.0,95588.0,0.0026]
[1733210583488,0.0523,95587.0,95583.0,0.0026]
[1733210583673,0.0523,95587.0,95583.0,0.054902]
[1733210583872,0.0523,95587.0,95585.0,0.052301]
[1733210584073,0.3608,95589.0,95587.0,0.0523]
[1733210584277,0.052292,95602.0,95583.0,0.0026]
[1733210584584,0.052292,95602.0,95598.0,0.052294]
[1733210584782,0.052292,95602.0,95599.0,0.14208]
[1733210584979,0.001,95600.0,95599.0,0.14208]
[1733210585477,0.052285,95614.0,95602.0,0.052292]
[1733210585784,0.00836,95619.0,95602.0,0.052292]
[1733210585785,0.052283,95618.0,95602.0,0.052292]
[1733210586080,0.052286,95614.0,95602.0,0.052292]
[1733210586383,0.052286,95613.0,95602.0,0.052292]
[1733210586772,0.00836,95619.0,95602.0,0.052292]
[1733210586974,0.052289,95607.0,95602.0,0.052292]
[1733210588570,0.11502135,95612.0,95602.0,0.052292]
[1733210588773,0.05229,95606.0,95602.0,0.052292]
[1733210589277,0.05229,95605.0,95599.0,0.14408]
[1733210589478,0.11502135,95610.0,95599.0,0.002]
[1733210589681,0.052292,95602.0,95600.0,0.14208]
[1733210590575,0.052293,95600.0,95599.0,0.001]
[1733210591082,0.21009909,95600.0,95599.0,0.001]
[1733210591378,0.21009909,95600.0,95592.0,0.14208]
[1733210591379,0.052296,95594.0,95592.0,0.14208]
[1733210591580,0.052299,95588.0,95587.0,0.0026]
[1733210591883,0.052299,95588.0,95586.0,0.14219607]
[1733210592071,0.085897,95593.0,95587.0,0.0523]
[1733210592379,0.085897,95593.0,95586.0,0.14219607]
[1733210592380,0.0336,95593.0,95586.0,0.00011607]
[1733210592580,0.0336,95593.0,95586.0,0.14219607]
[1733210592581,0.0523,95588.0,95586.0,0.14219607]
[1733210592787,0.0523,95588.0,95586.0,0.00011607]
[1733210594073,0.0543,95588.0,95586.0,0.00011607]
[1733210595187,4.663e-05,95587.0,95586.0,6.944e-05]
[1733210596386,0.00104663,95587.0,95586.0,6.944e-05]
[1733210596792,0.00304663,95587.0,95586.0,6.944e-05]
[1733210597085,0.60273619,95587.0,95533.0,0.3712]
[1733210597292,0.052322,95546.0,95533.0,0.3608]
[1733210597484,0.3608,95553.0,95534.0,0.14212]
[1733210597678,0.052328,95536.0,95534.0,0.14212]
[1733210598079,0.12618573,95543.0,95534.0,0.14212]
[1733210598080,8.022e-05,95535.0,95534.0,0.14212]
[1733210598281,8.022e-05,95535.0,95534.0,0.16305872]
[1733210599090,8.022e-05,95535.0,95534.0,0.02093872]
[1733210599477,0.36188022,95535.0,95534.0,0.007]
[1733210600093,0.37025022,95535.0,95534.0,0.007]
[1733210600488,0.37125022,95535.0,95534.0,0.016]
[1733210601090,0.37125022,95535.0,95534.0,0.013]
[1733210601286,0.37025022,95535.0,95534.0,0.006]
[1733210601486,0.37125022,95535.0,95534.0,0.012]
[1733210602194,0.37025022,95535.0,95534.0,0.009]
[1733210602693,0.37025022,95535.0,95519.0,7.393e-05]
[1733210602694,0.52659551,95535.0,95519.0,7.393e-05]
[1733210603008,0.052337,95520.0,95519.0,7.393e-05]
[1733210603781,0.21846947,95520.0,95519.0,7.393e-05]
[1733210604186,0.21846947,95520.0,95519.0,0.00507393]
[1733210604787,0.21846947,95520.0,95519.0,0.01207393]
[1733210605387,0.21846947,95520.0,95519.0,0.00507393]
[1733210605698,0.21846947,95520.0,95519.0,0.00707393]
[1733210605883,0.00837,95520.0,95519.0,0.14899393]
[1733210606087,0.00837,95520.0,95519.0,0.22019393]
[1733210606285,0.00845022,95535.0,95534.0,0.052329]
[1733210607899,0.01445022,95535.0,95534.0,0.052329]
[1733210609497,0.052315,95560.0,95548.0,0.052321]
[1733210609691,0.50272,95562.0,95549.0,0.3608]
[1733210609692,0.052316,95558.0,95549.0,0.3608]
[1733210609888,0.1571242,95561.0,95547.0,0.14192]
[1733210610087,0.12618573,95560.0,95547.0,0.14192]
[1733210610293,0.052321,95549.0,95547.0,0.14192]
[1733210610795,0.3608,95552.0,95547.0,0.14192]
[1733210610995,0.052317,95556.0,95550.0,0.05232]
[1733210611299,0.3608,95562.0,95548.0,0.0344]
[1733210611300,0.00837,95555.0,95548.0,0.0344]
[1733210611504,0.00837,95555.0,95554.0,0.413118]
[1733210612296,0.006,95561.0,95554.0,0.3608]
[1733210612500,0.0026,95568.0,95567.0,0.052311]
[1733210612697,0.052298,95591.0,95578.0,0.049705]
[1733210613002,0.0523,95588.0,95580.0,0.12618573]
[1733210613195,0.0523,95588.0,95579.0,0.034]
[1733210613498,0.00836,95590.0,95579.0,0.086304]
[1733210613701,0.3608,95582.0,95573.0,0.14192]
[1733210613904,0.413107,95574.0,95573.0,0.14192]
[1733210614207,0.052307,95574.0,95573.0,0.14192]
[1733210615008,0.413107,95574.0,95573.0,0.14192]
[1733210615194,0.3608,95574.0,95564.0,0.02094502]
[1733210615504,0.3608,95574.0,95573.0,0.001]
[1733210616792,0.00837,95575.0,95574.0,0.052307]
[1733210616991,0.00837,95575.0,95574.0,0.194227]
[1733210618027,0.00837,95575.0,95574.0,0.195227]
[1733210618394,0.00837,95575.0,95574.0,0.196227]
[1733210619906,0.00837,95575.0,95574.0,0.194227]
[1733210620104,0.00837,95575.0,95574.0,0.196227]
[1733210620610,0.00837,95575.0,95574.0,0.194227]
[1733210620804,0.00837,95575.0,95574.0,0.197227]
[1733210621804,0.00836,95590.0,95574.0,0.14492]
[1733210622103,0.00836,95590.0,95588.0,0.052299]
[1733210622308,0.00836,95590.0,95589.0,0.17568]
[1733210622808,0.00836,95590.0,95589.0,0.53648]
[1733210622994,0.43992,95617.0,95589.0,0.53648]
[1733210622995,0.052284,95617.0,95589.0,0.53648]
[1733210623196,0.00088001,95617.0,95610.0,0.052287]
[1733210623500,0.00836,95616.0,95613.0,0.3608]
[1733210623807,0.00836,95616.0,95615.0,0.052285]
[1733210625904,0.0344,95648.0,95615.0,0.052285]
[1733210626103,0.41394601,95649.0,95638.0,0.052272]
[1733210626311,0.413066,95649.0,95639.0,0.14188]
[1733210626500,0.3608,95649.0,95639.0,0.14188]
[1733210626697,0.052267,95648.0,95639.0,0.14188]
[1733210627206,0.004,95644.0,95639.0,0.14188]
[1733210627397,0.004,95644.0,95643.0,0.052269]
[1733210627798,0.01012,95645.0,95643.0,0.052269]
[1733210628103,0.01012,95645.0,95639.0,0.14548]
[1733210629310,0.01012,95645.0,95643.0,0.052269]
[1733210629903,0.01212,95645.0,95643.0,0.052269]
[1733210630103,0.01212,95645.0,95644.0,0.3608]
[1733210630305,0.01212,95645.0,95644.0,0.3939]
[1733210631102,0.01412,95645.0,95644.0,0.3939]
[1733210631504,0.01212,95645.0,95644.0,0.3939]
[1733210631706,0.01412,95645.0,95644.0,0.3949]
[1733210632698,0.01412,95645.0,95644.0,0.0341]
[1733210632907,0.01412,95645.0,95644.0,0.14404]
[1733210633504,0.01412,95645.0,95644.0,0.001]
[1733210635006,0.052271,95640.0,95639.0,0.0026]
[1733210635206,0.052274,95635.0,95634.0,0.02092619]
[1733210635620,0.3608,95637.0,95628.0,0.0026]
[1733210635824,0.413077,95629.0,95628.0,0.0026]
[1733210636024,0.413077,95629.0,95622.0,0.0026]
[1733210636025,0.05228,95624.0,95622.0,0.0026]
[1733210636314,0.51697765,95629.0,95616.0,0.02352619]
[1733210636506,0.51832536,95623.0,95616.0,0.0026]
[1733210636703,0.3608,95617.0,95603.0,0.14304]
[1733210636920,0.052289,95607.0,95604.0,0.05229]
[1733210637122,0.3608,95608.0,95606.0,0.052289]
[1733210637613,0.052291,95604.0,95603.0,0.14304]
[1733210637814,0.3608,95608.0,95603.0,0.16397104]
[1733210638015,0.3608,95608.0,95604.0,0.052291]
[1733210638820,0.3608,95608.0,95603.0,0.02093104]
[1733210639014,0.3608,95608.0,95605.0,0.05229]
[1733210639210,0.3608,95608.0,95606.0,0.052289]
[1733210639820,0.3618,95608.0,95606.0,0.052289]
[1733210640314,0.05229,95605.0,95604.0,0.14304]
[1733210640525,0.3618,95608.0,95604.0,0.14304]
[1733210641420,0.3618,95608.0,95606.0,0.052289]
[1733210642128,0.05229,95605.0,95604.0,0.14304]
[1733210642922,0.05229,95605.0,95603.0,0.02093104]
[1733210643117,0.05229,95605.0,95603.0,0.16397104]
[1733210643316,0.3608,95608.0,95605.0,0.05229]
[1733210643824,0.3608,95608.0,95603.0,0.16397104]
[1733210643825,0.413089,95608.0,95603.0,0.16397104]
[1733210644415,0.3608,95608.0,95603.0,0.16397104]
[1733210644725,0.05229,95605.0,95603.0,0.14404]
[1733210646327,0.05229,95605.0,95603.0,0.001]
[1733210646616,0.15719585,95604.0,95603.0,0.001]
[1733210646824,0.19189585,95604.0,95603.0,0.001]
[1733210647220,0.24418685,95604.0,95603.0,0.001]
[1733210647722,0.19189585,95604.0,95594.0,0.052296]
[1733210647919,0.24418685,95604.0,95603.0,0.001]
[1733210649523,0.20948685,95604.0,95603.0,0.052291]
[1733210650025,0.052292,95603.0,95595.0,0.14304]
[1733210650223,0.20948685,95604.0,95603.0,0.001]
[1733210650521,0.00076,95602.0,95601.0,0.052292]
[1733210651725,0.00076,95602.0,95599.0,0.14304]
[1733210651922,0.413093,95600.0,95599.0,0.14304]
[1733210652424,0.052293,95600.0,95599.0,0.14304]
[1733210652620,0.052293,95600.0,95598.0,0.052294]
[1733210652815,0.413093,95600.0,95598.0,0.052294]
[1733210653021,0.3608,95600.0,95598.0,0.052294]
[1733210653225,0.00076,95602.0,95601.0,0.052292]
[1733210653425,0.052292,95601.0,95599.0,0.001]
[1733210653727,0.052292,95601.0,95599.0,0.003]
[1733210654124,0.052292,95601.0,95599.0,0.001]
[1733210654815,0.052293,95599.0,95598.0,0.004]
[1733210655837,0.052293,95599.0,95598.0,0.002]
[1733210656021,0.052298,95591.0,95590.0,0.14304]
[1733210657626,0.052298,95591.0,95590.0,0.14904]
[1733210657823,0.3608,95593.0,95591.0,0.052298]
[1733210658138,0.00836,95592.0,95591.0,0.052298]
[1733210658742,0.052298,95591.0,95590.0,0.14904]
[1733210658924,0.052298,95591.0,95590.0,0.15304]
[1733210659125,0.00836,95592.0,95590.0,0.15304]
[1733210659325,0.00836,95592.0,95591.0,0.052298]
[1733210659531,0.00836,95592.0,95591.0,0.413098]
[1733210659827,0.00836,95592.0,95591.0,0.422098]
[1733210660024,1e-08,95592.0,95591.0,0.422098]
[1733210660227,1e-08,95592.0,95591.0,0.416098]
[1733210661229,1e-08,95592.0,95591.0,0.422098]
[1733210661636,1e-08,95592.0,95591.0,0.3698]
[1733210661932,0.05229701,95592.0,95591.0,0.51132]
[1733210663053,0.05229701,95592.0,95591.0,0.009]
[1733210667641,0.21000437,95592.0,95591.0,0.009]
[1733210669539,0.15770737,95592.0,95591.0,0.009]
[1733210669733,0.15770737,95592.0,95591.0,0.3698]
[1733210669734,1e-08,95592.0,95591.0,0.3698]
[1733210670140,0.00076,95602.0,95591.0,0.4029]
[1733210670342,0.05229,95600.0,95592.0,0.14152]
[1733210671041,0.00076,95602.0,95598.0,0.05229]
[1733210671042,0.05229,95599.0,95598.0,0.05229]
[1733210672436,0.0329,95616.0,95592.0,0.14152]
[1733210672637,0.12617669,95610.0,95599.0,0.05229]
[1733210672847,0.15736483,95605.0,95600.0,0.05229]
[1733210673042,0.052289,95603.0,95601.0,0.14152]
[1733210673248,0.052289,95603.0,95601.0,0.193809]
[1733210674037,0.00076,95603.0,95601.0,0.193809]
[1733210674442,0.00076,95603.0,95602.0,0.0363]
[1733210678038,0.052291,95601.0,95599.0,0.3608]
[1733210678246,0.052292,95599.0,95598.0,0.14152]
[1733210679650,0.052292,95599.0,95598.0,0.02293559]
[1733210679843,0.00076,95603.0,95599.0,0.052291]
[1733210680147,0.053049,95603.0,95598.0,0.16645559]
[1733210680347,0.00076,95603.0,95602.0,0.052289]
[1733210686753,1e-08,95604.0,95602.0,0.052289]
[1733210686949,1e-08,95604.0,95603.0,0.3964]
[1733210693561,1e-08,95604.0,95603.0,0.6964]
[1733210693759,0.0026,95623.0,95622.0,0.052276]
[1733210693960,0.0026,95643.0,95623.0,0.052276]
[1733210694150,0.0346,95644.0,95642.0,0.3608]
[1733210694356,0.0346,95644.0,95643.0,0.13972]
[1733210695662,0.0358,95645.0,95643.0,0.13972]
[1733210695663,0.00836,95645.0,95644.0,0.052264]
[1733210697057,0.0026,95663.0,95644.0,0.053264]
[1733210697258,0.052252,95667.0,95661.0,0.052254]
[1733210697464,0.052252,95667.0,95662.0,0.13968]
[1733210698056,0.036,95668.0,95665.0,0.052253]
[1733210698864,0.00836,95667.0,95665.0,0.052253]
[1733210699065,0.00836,95667.0,95662.0,0.13968]
[1733210699253,0.060612,95667.0,95662.0,0.13968]
[1733210699958,0.052254,95663.0,95662.0,0.13968]
[1733210700463,0.00836,95667.0,95662.0,0.13968]
[1733210700761,0.00836,95667.0,95662.0,0.191934]
[1733210701471,0.060612,95667.0,95663.0,0.052253]
[1733210701662,0.060612,95667.0,95662.0,0.13968]
[1733210701663,0.00836,95667.0,95662.0,0.13968]
[1733210701858,0.052254,95664.0,95662.0,0.13968]
[1733210702058,0.00836,95667.0,95662.0,0.14168]
[1733210702259,0.00836,95667.0,95665.0,0.052253]
[1733210703863,1e-08,95667.0,95665.0,0.413053]
[1733210706258,0.00200001,95667.0,95665.0,0.413053]
[1733210706865,0.052238,95693.0,95665.0,0.413053]
[1733210707070,0.052239,95690.0,95683.0,0.413043]
[1733210707270,0.052239,95690.0,95684.0,0.13964]
[1733210708769,0.00601,95689.0,95684.0,0.13964]
[1733210709666,0.052242,95685.0,95684.0,0.13964]
[1733210709968,0.052242,95685.0,95684.0,0.14064]
[1733210710174,0.052242,95685.0,95684.0,0.14264]
[1733210710675,0.052241,95687.0,95684.0,0.13964]
[1733210710865,0.052241,95687.0,95684.0,0.14564]
[1733210711477,0.00601,95689.0,95684.0,0.14564]
[1733210711478,0.052242,95685.0,95684.0,0.14564]
[1733210712361,0.052242,95685.0,95684.0,0.14464]
[1733210712860,0.052242,95685.0,95684.0,0.14364]
[1733210713067,0.00601,95689.0,95684.0,0.14364]
[1733210713269,0.00601,95689.0,95684.0,0.14464]
[1733210713469,0.00601,95689.0,95684.0,0.14564]
[1733210715275,0.05825,95689.0,95684.0,0.14364]
[1733210715470,0.00601,95689.0,95684.0,0.14464]
[1733210715668,0.052242,95686.0,95684.0,0.14064]
[1733210715976,0.052242,95686.0,95684.0,0.14264]
[1733210716376,0.052242,95686.0,95684.0,0.003]
[1733210716563,0.052246,95678.0,95675.0,0.1396]
[1733210716768,0.0337,95677.0,95676.0,0.1396]
[1733210716969,0.00601,95689.0,95684.0,0.002]
[1733210717269,0.052241,95687.0,95684.0,0.002]
[1733210717770,0.052241,95686.0,95684.0,0.002]
[1733210718771,0.0337,95688.0,95682.0,0.1396]
[1733210719172,0.00601,95689.0,95682.0,0.552643]
[1733210719566,0.00601,95689.0,95684.0,0.052242]
[1733210719769,0.00601,95689.0,95684.0,0.057242]
[1733210720187,0.00601,95689.0,95684.0,0.054242]
[1733210720478,0.01001,95689.0,95684.0,0.002]
[1733210720677,0.01001,95689.0,95688.0,0.05224]
[1733210720978,0.00601,95689.0,95688.0,0.05224]
[1733210721278,0.01001,95689.0,95688.0,0.1396]
[1733210721775,0.01201,95689.0,95688.0,0.1396]
[1733210722376,0.01201,95689.0,95688.0,0.15916194]
[1733210722576,0.01001,95689.0,95688.0,0.15916194]
[1733210722771,0.01201,95689.0,95688.0,0.16016194]
[1733210726776,0.1,95700.0,95688.0,0.16016194]
[1733210726975,0.1,95700.0,95699.0,0.413034]
[1733210727184,0.1,95700.0,95699.0,0.552634]
[1733210727688,0.1,95700.0,95699.0,0.588834]
[1733210728983,0.0026,95720.0,95699.0,0.399]
[1733210729185,0.0026,95728.0,95727.0,0.052219]
[1733210729384,0.0356,95732.0,95731.0,0.052217]
[1733210729890,0.0348,95739.0,95731.0,0.052217]
[1733210730083,0.0348,95739.0,95737.0,0.413013]
[1733210730286,0.0349,95744.0,95742.0,0.052211]
[1733210731493,0.0331,95750.0,95742.0,0.052211]
[1733210732483,0.0331,95750.0,95740.0,0.17817526]
[1733210732684,0.0331,95750.0,95740.0,0.12596326]
[1733210732886,0.0331,95750.0,95738.0,0.13956]
[1733210733496,0.0331,95750.0,95745.0,0.3608]
[1733210734398,0.0331,95750.0,95741.0,0.052211]
[1733210735301,0.0331,95750.0,95742.0,0.052211]
[1733210735603,0.0331,95750.0,95743.0,0.13952]
[1733210735898,0.0331,95750.0,95744.0,0.13952]
[1733210736101,0.052207,95749.0,95744.0,0.13952]
[1733210737991,0.052207,95749.0,95743.0,0.05221]
[1733210738286,0.052207,95749.0,95745.0,0.13952]
[1733210739392,0.0331,95750.0,95745.0,0.13952]
[1733210739586,0.052209,95747.0,95745.0,0.13952]
[1733210740688,0.052213,95739.0,95737.0,0.3608]
[1733210740894,0.052213,95739.0,95738.0,0.13952]
[1733210741297,0.052217,95732.0,95731.0,0.0209055]
[1733210741502,0.052217,95732.0,95731.0,0.13952]
[1733210742000,0.052215,95735.0,95731.0,0.13952]
[1733210742295,0.052217,95732.0,95731.0,0.13952]
[1733210742698,0.052217,95732.0,95731.0,0.14152]
[1733210743086,0.052217,95732.0,95731.0,0.002]
[1733210743399,0.052217,95732.0,95730.0,0.13952]
[1733210743588,0.0352,95731.0,95730.0,0.13952]
[1733210744592,0.0352,95731.0,95729.0,0.0209043]
[1733210744790,0.052218,95730.0,95729.0,0.0209043]
[1733210745006,0.052218,95730.0,95729.0,0.1604243]
[1733210746202,0.052216,95735.0,95734.0,0.052215]
[1733210746597,0.052212,95741.0,95738.0,0.052213]
[1733210746802,0.052212,95741.0,95740.0,0.052212]
[1733210747006,0.36168001,95744.0,95739.0,0.13952]
[1733210747007,0.3608,95744.0,95739.0,0.13952]
[1733210747209,0.3608,95744.0,95743.0,0.052211]
[1733210747400,0.052207,95750.0,95749.0,0.052207]
[1733210747708,0.052207,95750.0,95749.0,0.191727]
[1733210749000,0.3608,95755.0,95754.0,0.052205]
[1733210749205,0.0522,95764.0,95762.0,0.0522]
[1733210749597,0.15623204,95763.0,95762.0,0.0522]
[1733210750103,0.0522,95764.0,95762.0,0.0522]
[1733210751702,0.052201,95762.0,95761.0,0.13952]
[1733210752193,0.413001,95762.0,95761.0,0.13952]
[1733210752711,0.052205,95754.0,95753.0,0.0193956]
[1733210752897,0.052205,95754.0,95753.0,0.13948]
[1733210753407,0.08803,95761.0,95741.0,0.01958636]
[1733210753710,0.05221,95745.0,95744.0,0.13948]
[1733210753891,0.052215,95736.0,95735.0,8.826e-05]
[1733210754097,0.052215,95736.0,95735.0,0.13956826]
[1733210754293,0.052209,95747.0,95745.0,0.05221]
[1733210754505,0.3608,95750.0,95742.0,0.052211]
[1733210754709,0.052211,95744.0,95742.0,0.052211]
[1733210755205,0.052211,95744.0,95743.0,0.13948]
[1733210756303,0.3608,95750.0,95747.0,0.052208]
[1733210756304,0.413008,95750.0,95747.0,0.052208]
[1733210756505,0.052208,95749.0,95748.0,0.191688]
[1733210757004,0.052205,95754.0,95752.0,0.052206]
[1733210758600,0.052208,95749.0,95748.0,0.13948]
[1733210758807,0.052208,95749.0,95748.0,0.14048]
[1733210759309,0.052208,95749.0,95748.0,0.13948]
[1733210760003,0.052208,95749.0,95748.0,0.14048]
[1733210760203,0.052208,95749.0,95748.0,0.001]
[1733210760410,0.052208,95749.0,95748.0,0.14044]
[1733210762606,0.052208,95749.0,95748.0,0.001]
[1733210763202,0.052208,95749.0,95748.0,0.053209]
[1733210764704,0.052208,95749.0,95748.0,0.001]
[1733210769415,0.052208,95749.0,95748.0,0.14044]
[1733210770609,0.052208,95749.0,95748.0,0.001]
[1733210771704,0.052208,95749.0,95738.0,0.3608]
[1733210771705,0.052208,95749.0,95730.0,0.01962004]
[1733210771916,0.052215,95737.0,95736.0,0.13944]
[1733210773113,0.052215,95737.0,95736.0,0.14044]
[1733210773311,0.052215,95737.0,95736.0,0.001]
[1733210774819,0.052215,95737.0,95736.0,0.002]
[1733210775216,0.052215,95737.0,95736.0,0.054215]
[1733210775619,0.052215,95737.0,95736.0,0.001]
[1733210775818,0.052215,95737.0,95736.0,0.002]
[1733210776418,0.052215,95737.0,95736.0,0.001]
[1733210777913,0.052215,95737.0,95735.0,0.02098769]
[1733210777914,0.052215,95737.0,95735.0,0.07320269]
[1733210780015,0.3608,95743.0,95735.0,0.02098769]
[1733210780316,0.052215,95738.0,95735.0,0.02098769]
[1733210781120,0.052215,95738.0,95735.0,0.02198769]
[1733210781521,0.052215,95737.0,95736.0,0.052215]
[1733210782722,0.052215,95737.0,95735.0,0.02098769]
[1733210782929,0.052215,95737.0,95736.0,0.1394]
[1733210783712,0.052215,95737.0,95735.0,0.02098769]
[1733210784527,0.15617763,95736.0,95735.0,8.826e-05]
[1733210785615,0.15617763,95736.0,95735.0,2.6e-07]
[1733210786518,0.15629228,95736.0,95735.0,2.6e-07]
[1733210786715,0.26074674,95736.0,95735.0,2.6e-07]
[1733210786913,0.56074674,95736.0,95735.0,2.6e-07]
[1733210787816,0.26074674,95736.0,95735.0,2.6e-07]
[1733210788424,0.56074674,95736.0,95735.0,2.6e-07]
[1733210789328,0.26074674,95736.0,95735.0,2.6e-07]